fUSD/lending_fUSD_20260515
["ID","MTS","AMOUNT","RATE_DAILY","PERIOD"]
[422347174,1778859040000,-500.0,0.00014999,2]
[422347183,1778859040000,-840.73,0.00014999,2]
[422347212,1778859040000,-840.73,0.00014999,2]
[422347178,1778859040000,-503.8532288,0.00014999,2]
[422347211,1778859040000,-840.73,0.00014999,2]
[422347230,1778859040000,-300.0,0.00014999,2]
[422347214,1778859040000,-840.73,0.00014999,2]
[422347263,1778859040000,-774.31587832,0.00015,2]
[422347262,1778859040000,-1188.44991006,0.00015,2]
[422347254,1778859040000,-48645.5,0.00015,2]
[422347246,1778859040000,-1290.08569442,0.00015,2]
[422347250,1778859040000,-767.54052114,0.00015,2]
[422347243,1778859040000,-286.75,0.00015,2]
[422347241,1778859040000,-372.73608226,0.00015,2]
[422347200,1778859040000,-840.73,0.00014999,2]
[422347234,1778859040000,-195.85268885,0.00014999,2]
[422347237,1778859040000,-300.0,0.00014999,2]
[422347252,1778859040000,-3460.0,0.00015,2]
[422347264,1778859040000,-213481.08019109,0.00015,2]
[422347229,1778859040000,-300.0,0.00014999,2]
[422347232,1778859040000,-666.0,0.00014999,2]
[422347225,1778859040000,-840.94987748,0.00014999,2]
[422347218,1778859040000,-840.73,0.00014999,2]
[422347227,1778859040000,-300.0,0.00014999,2]
[422347222,1778859040000,-840.73,0.00014999,2]
[422347219,1778859040000,-840.73,0.00014999,2]
[422347216,1778859040000,-840.73,0.00014999,2]
[422347239,1778859040000,-4750166.36988156,0.00015,2]
[422347265,1778859042000,-16417.61445017,0.00015,2]
[422347291,1778859043000,-362.31796543,0.00014786,2]
[422347293,1778859046000,-1032.77775416,0.00014786,2]
[422347295,1778859046000,-528.24927722,0.00015,2]
[422347296,1778859046000,-16734.53838795,0.00015,2]
[422347294,1778859046000,-208.93648264,0.00014786,2]
[422347298,1778859046000,-344.13183727,0.000149,2]
[422347300,1778859046000,-8911.70504249,0.00015,2]
[422347299,1778859046000,-7.58312873,0.00015,2]
[422347301,1778859046000,-9354.85122343,0.00015,2]
[422347297,1778859046000,-340.43357469,0.00015,2]
[422347311,1778859260000,500.0,0.00030137,120]
[422347312,1778859676000,171.25809724,0.0003013,120]
[422347313,1778859711000,181.59,6.839e-05,2]
[422347333,1778860231000,-390.37271931,0.00013419,2]
[422347330,1778860231000,-1623.11679656,0.00013419,2]
[422347327,1778860231000,-300.0,0.00013418,2]
[422347337,1778860231000,-150.0,0.00013488,2]
[422347334,1778860231000,-1050.0,0.00013419,2]
[422347335,1778860231000,-10165.07399323,0.00013419,2]
[422347328,1778860231000,-300.0,0.00013418,2]
[422347338,1778860231000,-156.34451496,0.00013488,2]
[422347332,1778860231000,-860.78968653,0.00013419,2]
[422347329,1778860231000,-617.87080437,0.00013419,2]
[422347322,1778860231000,-166.66,0.00013351,2]
[422347324,1778860231000,-181.59,0.0001341,2]
[422347326,1778860231000,-563.5517799,0.00013418,2]
[422347319,1778860231000,-320.02955992,0.00013097,2]
[422347325,1778860231000,-636.4482201,0.00013418,2]
[422347323,1778860231000,-267.42,0.00013351,2]
[422347320,1778860231000,-316.38022299,0.00013097,2]
[422347321,1778860231000,-160.21,0.00013106,2]
[422347340,1778860231000,-150.0,0.00013488,2]
[422347318,1778860231000,-363.59021709,0.00013097,2]
[422347317,1778860231000,-1000.0,0.00013097,2]
[422347331,1778860231000,-335.31,0.00013419,2]
[422347339,1778860231000,-150.0,0.00013488,2]
[422347373,1778860231000,-106.23295382,0.00014,2]
[422347341,1778860231000,-150.0,0.00013488,2]
[422347361,1778860231000,-150.0,0.00013987,2]
[422347364,1778860231000,-2730.1767011,0.0001399,2]
[422347357,1778860231000,-150.0,0.00013961,2]
[422347359,1778860231000,-166.66,0.00013973,2]
[422347355,1778860231000,-237.87,0.00013945,2]
[422347371,1778860231000,-324.90818045,0.0001399,2]
[422347368,1778860231000,-609.8984744,0.0001399,2]
[422347366,1778860231000,-427.7070206,0.0001399,2]
[422347354,1778860231000,-150.0,0.00013882,2]
[422347349,1778860231000,-200.0,0.00013699,2]
[422347336,1778860231000,-266.38482168,0.00013488,2]
[422347347,1778860231000,-150.0,0.00013567,2]
[422347351,1778860231000,-150.0,0.00013724,2]
[422347350,1778860231000,-166.66,0.00013699,2]
[422347345,1778860231000,-13179.63130292,0.0001352,2]
[422347348,1778860231000,-150.0,0.00013645,2]
[422347353,1778860231000,-166.66,0.00013836,2]
[422347346,1778860231000,-9155.44168957,0.0001352,2]
[422347342,1778860231000,-150.0,0.00013488,2]
[422347343,1778860231000,-150.0,0.00013519,2]
[422347344,1778860231000,-47664.92700751,0.0001352,2]
[422347352,1778860231000,-150.0,0.00013803,2]
[422347422,1778860237000,-656.88421851,0.0001399,2]
[422347430,1778860240000,-15675.81974292,0.0001399,2]
[422347432,1778860240000,-150.0,0.0001404,2]
[422347433,1778860240000,-166.51,0.00014052,2]
[422347434,1778860240000,-166.66,0.0001411,2]
[422347435,1778860240000,-150.0,0.00014119,2]
[422347439,1778860240000,-150.0,0.00014237,2]
[422347437,1778860240000,-1082.89,0.00014229,2]
[422347436,1778860240000,-150.0,0.00014198,2]
[422347431,1778860240000,-143.76704618,0.00014,2]
[422347444,1778860240000,-8628.27938724,0.00014255,2]
[422347443,1778860240000,-2136.60159425,0.00014255,2]
[422347438,1778860240000,-5000.0,0.00014229,2]
[422347441,1778860240000,-150.0,0.00014237,2]
[422347442,1778860240000,-166.66,0.00014247,2]
[422347445,1778860240000,-495.18595217,0.00014255,2]
[422347449,1778860240000,-150.0,0.00014276,2]
[422347448,1778860240000,-867.25430535,0.00014255,2]
[422347450,1778860240000,-57.29172934,0.00014288,2]
[422347446,1778860240000,-1015.86294189,0.00014255,2]
[422347440,1778860240000,-150.0,0.00014237,2]
[422347475,1778860240000,-327.36337803,0.00014288,2]
[422347480,1778860241000,-251.1857665,0.00014319,2]
[422347479,1778860241000,-1010.67363396,0.00014288,2]
[422347476,1778860241000,-400.0,0.00014288,2]
[422347477,1778860241000,-1891.35699263,0.00014288,2]
[422347482,1778860241000,-777.17200919,0.00014327,2]
[422347478,1778860241000,-146.96173344,0.00014288,2]
[422347481,1778860241000,-48.8042335,0.00014319,2]
[422347574,1778860242000,-500.0,0.00014328,2]
[422347550,1778860242000,-500.0,0.00014328,2]
[422347551,1778860242000,-506.44557619,0.00014328,2]
[422347554,1778860242000,-500.0,0.00014328,2]
[422347552,1778860242000,-500.0,0.00014328,2]
[422347553,1778860242000,-500.0,0.00014328,2]
[422347567,1778860242000,-500.0,0.00014328,2]
[422347569,1778860242000,-500.0,0.00014328,2]
[422347556,1778860242000,-500.0,0.00014328,2]
[422347572,1778860242000,-500.0,0.00014328,2]
[422347573,1778860242000,-500.0,0.00014328,2]
[422347557,1778860242000,-500.0,0.00014328,2]
[422347558,1778860242000,-500.0,0.00014328,2]
[422347559,1778860242000,-506.14328985,0.00014328,2]
[422347560,1778860242000,-500.0,0.00014328,2]
[422347562,1778860242000,-500.0,0.00014328,2]
[422347564,1778860242000,-500.0,0.00014328,2]
[422347575,1778860242000,-254.28762829,0.00014328,2]
[422347555,1778860242000,-500.0,0.00014328,2]
[422347571,1778860242000,-500.0,0.00014328,2]
[422347546,1778860242000,-500.0,0.00014328,2]
[422347544,1778860242000,-500.0,0.00014328,2]
[422347528,1778860242000,-974.37953422,0.00014327,2]
[422347529,1778860242000,-385.05005077,0.00014327,2]
[422347531,1778860242000,-8307.378332,0.00014327,2]
[422347532,1778860242000,-500.0,0.00014328,2]
[422347530,1778860242000,-1831.94994926,0.00014327,2]
[422347534,1778860242000,-500.0,0.00014328,2]
[422347533,1778860242000,-500.0,0.00014328,2]
[422347535,1778860242000,-500.0,0.00014328,2]
[422347536,1778860242000,-500.0,0.00014328,2]
[422347538,1778860242000,-500.0,0.00014328,2]
[422347542,1778860242000,-500.0,0.00014328,2]
[422347576,1778860242000,-642.29736269,0.00014328,2]
[422347541,1778860242000,-500.0,0.00014328,2]
[422347543,1778860242000,-500.0,0.00014328,2]
[422347539,1778860242000,-505.50097699,0.00014328,2]
[422347537,1778860242000,-500.0,0.00014328,2]
[422347545,1778860242000,-500.0,0.00014328,2]
[422347549,1778860242000,-500.0,0.00014328,2]
[422347548,1778860242000,-500.0,0.00014328,2]
[422347547,1778860242000,-500.0,0.00014328,2]
[422347577,1778860242000,-580.87837748,0.00014328,2]
[422347540,1778860242000,-500.0,0.00014328,2]
[422347578,1778860242000,-150.0,0.00014355,2]
[422347604,1778860242000,-500.0,0.00014387,2]
[422347603,1778860242000,-500.0,0.00014387,2]
[422347614,1778860242000,-150.0,0.00014407,2]
[422347607,1778860242000,-500.0,0.00014387,2]
[422347606,1778860242000,-500.0,0.00014387,2]
[422347605,1778860242000,-500.0,0.00014387,2]
[422347608,1778860242000,-500.0,0.00014387,2]
[422347609,1778860242000,-500.0,0.00014387,2]
[422347611,1778860242000,-1500000.0,0.00014388,2]
[422347610,1778860242000,-2000.0,0.00014388,2]
[422347613,1778860242000,-10139.32828126,0.00014398,2]
[422347618,1778860242000,-10139.32828126,0.0001447,2]
[422347615,1778860242000,-500.0,0.00014423,2]
[422347619,1778860242000,-214.997284,0.00014486,2]
[422347617,1778860242000,-2136.60159418,0.0001447,2]
[422347616,1778860242000,-150.0,0.00014434,2]
[422347621,1778860242000,-500.0,0.00014487,2]
[422347620,1778860242000,-150.0,0.00014487,2]
[422347582,1778860242000,-500.0,0.00014387,2]
[422347602,1778860242000,-500.0,0.00014387,2]
[422347601,1778860242000,-500.0,0.00014387,2]
[422347612,1778860242000,-2136.60159418,0.00014398,2]
[422347599,1778860242000,-500.0,0.00014387,2]
[422347595,1778860242000,-500.0,0.00014387,2]
[422347580,1778860242000,-166.66,0.00014384,2]
[422347579,1778860242000,-241.70926809,0.00014378,2]
[422347581,1778860242000,-500.0,0.00014387,2]
[422347583,1778860242000,-397.85532222,0.00014387,2]
[422347585,1778860242000,-500.0,0.00014387,2]
[422347587,1778860242000,-500.0,0.00014387,2]
[422347586,1778860242000,-307.68277898,0.00014387,2]
[422347588,1778860242000,-500.0,0.00014387,2]
[422347584,1778860242000,-500.0,0.00014387,2]
[422347589,1778860242000,-500.0,0.00014387,2]
[422347590,1778860242000,-500.0,0.00014387,2]
[422347592,1778860242000,-187.80258901,0.00014387,2]
[422347593,1778860242000,-500.0,0.00014387,2]
[422347600,1778860242000,-500.0,0.00014387,2]
[422347594,1778860242000,-500.0,0.00014387,2]
[422347597,1778860242000,-500.0,0.00014387,2]
[422347596,1778860242000,-500.0,0.00014387,2]
[422347591,1778860242000,-497.30933608,0.00014387,2]
[422347598,1778860242000,-500.0,0.00014387,2]
[422347661,1778860243000,-1028.23,0.00014528,2]
[422347657,1778860243000,-1028.23,0.00014528,2]
[422347659,1778860243000,-1028.23,0.00014528,2]
[422347660,1778860243000,-1028.23,0.00014528,2]
[422347658,1778860243000,-1028.23,0.00014528,2]
[422347656,1778860243000,-503.8532288,0.00014528,2]
[422347651,1778860243000,-778.11,0.00014528,2]
[422347652,1778860243000,-500.0,0.00014528,2]
[422347663,1778860243000,-500.0,0.00014528,2]
[422347653,1778860243000,-500.0,0.00014528,2]
[422347655,1778860243000,-500.0,0.00014528,2]
[422347676,1778860243000,-500.0,0.00014528,2]
[422347697,1778860243000,-500.0,0.00014557,2]
[422347669,1778860243000,-500.0,0.00014528,2]
[422347662,1778860243000,-500.0,0.00014528,2]
[422347664,1778860243000,-500.0,0.00014528,2]
[422347674,1778860243000,-500.0,0.00014528,2]
[422347665,1778860243000,-500.0,0.00014528,2]
[422347667,1778860243000,-500.0,0.00014528,2]
[422347671,1778860243000,-544.8115812,0.00014528,2]
[422347678,1778860243000,-500.0,0.00014528,2]
[422347695,1778860243000,-500.0,0.00014557,2]
[422347693,1778860243000,-10139.32828126,0.00014542,2]
[422347690,1778860243000,-2136.60159418,0.00014542,2]
[422347654,1778860243000,-500.0,0.00014528,2]
[422347666,1778860243000,-500.0,0.00014528,2]
[422347649,1778860243000,-778.11,0.00014528,2]
[422347638,1778860243000,-500.0,0.00014528,2]
[422347647,1778860243000,-778.11,0.00014528,2]
[422347622,1778860243000,-500.0,0.00014487,2]
[422347624,1778860243000,-778.11,0.00014487,2]
[422347623,1778860243000,-500.0,0.00014487,2]
[422347626,1778860243000,-500.0,0.00014487,2]
[422347625,1778860243000,-582.94577915,0.00014487,2]
[422347628,1778860243000,-500.0,0.00014487,2]
[422347682,1778860243000,-500.0,0.00014528,2]
[422347627,1778860243000,-1028.23,0.00014487,2]
[422347630,1778860243000,-500.0,0.00014487,2]
[422347632,1778860243000,-500.0,0.00014487,2]
[422347629,1778860243000,-500.0,0.00014487,2]
[422347633,1778860243000,-150.0,0.00014513,2]
[422347650,1778860243000,-778.11,0.00014528,2]
[422347631,1778860243000,-500.0,0.00014487,2]
[422347634,1778860243000,-500.0,0.00014528,2]
[422347636,1778860243000,-500.0,0.00014528,2]
[422347637,1778860243000,-500.0,0.00014528,2]
[422347639,1778860243000,-500.0,0.00014528,2]
[422347643,1778860243000,-500.0,0.00014528,2]
[422347641,1778860243000,-500.0,0.00014528,2]
[422347644,1778860243000,-500.0,0.00014528,2]
[422347640,1778860243000,-500.0,0.00014528,2]
[422347648,1778860243000,-778.11,0.00014528,2]
[422347642,1778860243000,-500.0,0.00014528,2]
[422347645,1778860243000,-500.0,0.00014528,2]
[422347646,1778860243000,-527.38709912,0.00014528,2]
[422347635,1778860243000,-500.0,0.00014528,2]
[422347684,1778860243000,-500.0,0.00014528,2]
[422347680,1778860243000,-500.0,0.00014528,2]
[422347699,1778860243000,-778.11,0.00014557,2]
[422347754,1778860243000,-500.0,0.00014893,2]
[422347764,1778860243000,-500.0,0.00014893,2]
[422347766,1778860243000,-500.0,0.00014893,2]
[422347752,1778860243000,-500.0,0.00014893,2]
[422347756,1778860243000,-500.0,0.00014893,2]
[422347758,1778860243000,-500.0,0.00014893,2]
[422347770,1778860243000,-500.0,0.00014893,2]
[422347768,1778860243000,-500.0,0.00014893,2]
[422347772,1778860243000,-500.0,0.00014893,2]
[422347783,1778860243000,-500.0,0.00014893,2]
[422347782,1778860243000,-500.0,0.00014893,2]
[422347785,1778860243000,-500.0,0.00014893,2]
[422347788,1778860243000,-500.0,0.00014898,2]
[422347786,1778860243000,-267.18441959,0.00014893,2]
[422347784,1778860243000,-500.0,0.00014893,2]
[422347789,1778860243000,-500.0,0.00014898,2]
[422347776,1778860243000,-500.0,0.00014893,2]
[422347774,1778860243000,-500.0,0.00014893,2]
[422347781,1778860243000,-500.0,0.00014893,2]
[422347779,1778860243000,-500.0,0.00014893,2]
[422347778,1778860243000,-500.0,0.00014893,2]
[422347790,1778860243000,-401.0210076,0.00014898,2]
[422347792,1778860243000,-778.11,0.00014898,2]
[422347794,1778860243000,-778.11,0.00014898,2]
[422347799,1778860243000,-778.11,0.00014898,2]
[422347688,1778860243000,-366.5739184,0.00014528,2]
[422347796,1778860243000,-778.11,0.00014898,2]
[422347760,1778860243000,-500.0,0.00014893,2]
[422347762,1778860243000,-500.0,0.00014893,2]
[422347801,1778860243000,-778.11,0.00014898,2]
[422347750,1778860243000,-200.0,0.0001488,2]
[422347748,1778860243000,-162.0,0.0001488,2]
[422347703,1778860243000,-500.0,0.00014557,2]
[422347701,1778860243000,-1028.23,0.00014557,2]
[422347705,1778860243000,-500.0,0.00014557,2]
[422347715,1778860243000,-150.0,0.00014671,2]
[422347716,1778860243000,-2136.60159418,0.00014685,2]
[422347717,1778860243000,-10139.32828126,0.00014685,2]
[422347719,1778860243000,-176.294557,0.000147,2]
[422347721,1778860243000,-161.0,0.00014709,2]
[422347722,1778860243000,-2000.0,0.00014734,2]
[422347724,1778860243000,-150.0,0.0001475,2]
[422347713,1778860243000,-255.0,0.00014627,2]
[422347709,1778860243000,-2136.60159418,0.00014613,2]
[422347686,1778860243000,-500.0,0.00014528,2]
[422347711,1778860243000,-10139.32828126,0.00014613,2]
[422347707,1778860243000,-150.0,0.00014592,2]
[422347736,1778860243000,-500.0,0.00014799,2]
[422347744,1778860243000,-150.0,0.00014829,2]
[422347742,1778860243000,-10139.32828126,0.00014828,2]
[422347746,1778860243000,-29964.16918207,0.0001485,2]
[422347740,1778860243000,-2136.60159418,0.00014828,2]
[422347734,1778860243000,-1028.23,0.00014799,2]
[422347738,1778860243000,-500.0,0.00014799,2]
[422347730,1778860243000,-1680.0,0.0001476,2]
[422347728,1778860243000,-10139.32828126,0.00014757,2]
[422347726,1778860243000,-2136.60159418,0.00014757,2]
[422347732,1778860243000,-500.0,0.00014799,2]
[422347867,1778860244000,-778.11,0.00014999,2]
[422347865,1778860244000,-151.0,0.00014997,2]
[422347858,1778860244000,-287.11416309,0.00014986,2]
[422347862,1778860244000,-241.70926809,0.0001499,2]
[422347866,1778860244000,-277.09721706,0.00014997,2]
[422347861,1778860244000,-204.41834298,0.00014986,2]
[422347863,1778860244000,-241.70926809,0.0001499,2]
[422347864,1778860244000,-151.0,0.00014997,2]
[422347868,1778860244000,-778.11,0.00014999,2]
[422347859,1778860244000,-254.66275453,0.00014986,2]
[422347860,1778860244000,-275.90606938,0.00014986,2]
[422347870,1778860244000,-778.11,0.00014999,2]
[422347874,1778860244000,-778.11,0.00014999,2]
[422347869,1778860244000,-778.11,0.00014999,2]
[422347873,1778860244000,-778.11,0.00014999,2]
[422347872,1778860244000,-778.11,0.00014999,2]
[422347871,1778860244000,-778.11,0.00014999,2]
[422347875,1778860244000,-778.11,0.00014999,2]
[422347879,1778860244000,-1028.23,0.00014999,2]
[422347878,1778860244000,-1028.23,0.00014999,2]
[422347877,1778860244000,-778.1947041,0.00014999,2]
[422347876,1778860244000,-778.11,0.00014999,2]
[422347882,1778860244000,-1028.23,0.00014999,2]
[422347857,1778860244000,-229.98198189,0.00014986,2]
[422347881,1778860244000,-1028.23,0.00014999,2]
[422347880,1778860244000,-1028.23,0.00014999,2]
[422347892,1778860244000,-300.0,0.00014999,2]
[422347835,1778860244000,-500.0,0.0001497,2]
[422347843,1778860244000,-500.0,0.0001497,2]
[422347884,1778860244000,-1028.23,0.00014999,2]
[422347807,1778860244000,-1028.23,0.00014898,2]
[422347805,1778860244000,-1028.23,0.00014898,2]
[422347803,1778860244000,-778.11,0.00014898,2]
[422347811,1778860244000,-1028.23,0.00014898,2]
[422347809,1778860244000,-1028.23,0.00014898,2]
[422347813,1778860244000,-1028.23,0.00014898,2]
[422347815,1778860244000,-500.0,0.00014898,2]
[422347817,1778860244000,-500.0,0.00014898,2]
[422347821,1778860244000,-10000.0,0.000149,2]
[422347827,1778860244000,-480.44861491,0.000149,2]
[422347829,1778860244000,-150.0,0.00014907,2]
[422347845,1778860244000,-500.0,0.0001497,2]
[422347819,1778860244000,-500.0,0.00014898,2]
[422347823,1778860244000,-2136.60159418,0.000149,2]
[422347825,1778860244000,-10139.32828126,0.000149,2]
[422347837,1778860244000,-500.0,0.0001497,2]
[422347839,1778860244000,-500.0,0.0001497,2]
[422347847,1778860244000,-500.0,0.0001497,2]
[422347849,1778860244000,-689.73790928,0.0001497,2]
[422347853,1778860244000,-1000.0,0.0001497,2]
[422347852,1778860244000,-1000.0,0.0001497,2]
[422347841,1778860244000,-500.0,0.0001497,2]
[422347854,1778860244000,-1000.0,0.0001497,2]
[422347851,1778860244000,-1000.0,0.0001497,2]
[422347856,1778860244000,-1215.46028509,0.0001497,2]
[422347832,1778860244000,-1028.23,0.00014969,2]
[422347891,1778860244000,-300.0,0.00014999,2]
[422347855,1778860244000,-1000.0,0.0001497,2]
[422347887,1778860244000,-1028.44987748,0.00014999,2]
[422347927,1778860244000,-445.341502,0.00015,2]
[422347918,1778860244000,-151.0,0.00015,2]
[422347922,1778860244000,-904930.9512718,0.00015,2]
[422347926,1778860244000,-445.341502,0.00015,2]
[422347920,1778860244000,-151.0,0.00015,2]
[422347925,1778860244000,-445.341502,0.00015,2]
[422347923,1778860244000,-151.0,0.00015,2]
[422347921,1778860244000,-151.0,0.00015,2]
[422347919,1778860244000,-151.0,0.00015,2]
[422347924,1778860244000,-151.0,0.00015,2]
[422347928,1778860244000,-445.341502,0.00015,2]
[422347930,1778860244000,-304.753055,0.00015,2]
[422347917,1778860244000,-151.0,0.00015,2]
[422347932,1778860244000,-445.341502,0.00015,2]
[422347931,1778860244000,-445.341502,0.00015,2]
[422347939,1778860244000,-304.753055,0.00015,2]
[422347933,1778860244000,-304.753055,0.00015,2]
[422347938,1778860244000,-304.753055,0.00015,2]
[422347935,1778860244000,-445.341502,0.00015,2]
[422347936,1778860244000,-445.341502,0.00015,2]
[422347934,1778860244000,-304.753055,0.00015,2]
[422347937,1778860244000,-304.753055,0.00015,2]
[422347941,1778860244000,-151.0,0.00015,2]
[422347940,1778860244000,-304.753055,0.00015,2]
[422347943,1778860244000,-151.0,0.00015,2]
[422347885,1778860244000,-1028.23,0.00014999,2]
[422347929,1778860244000,-304.753055,0.00015,2]
[422347916,1778860244000,-174382.1231064,0.00015,2]
[422347942,1778860244000,-151.0,0.00015,2]
[422347910,1778860244000,-151.0,0.00015,2]
[422347914,1778860244000,-151.0,0.00015,2]
[422347883,1778860244000,-1028.23,0.00014999,2]
[422347890,1778860244000,-300.0,0.00014999,2]
[422347888,1778860244000,-500.0,0.00014999,2]
[422347886,1778860244000,-1028.23,0.00014999,2]
[422347893,1778860244000,-666.0,0.00014999,2]
[422347902,1778860244000,-993523.69586375,0.00015,2]
[422347903,1778860244000,-379.34,0.00015,2]
[422347894,1778860244000,-300.0,0.00014999,2]
[422347895,1778860244000,-300.0,0.00014999,2]
[422347898,1778860244000,-3705497.53159053,0.00015,2]
[422347896,1778860244000,-300.0,0.00014999,2]
[422347899,1778860244000,-2076.06689717,0.00015,2]
[422347889,1778860244000,-457.24758592,0.00014999,2]
[422347900,1778860244000,-3144.531642,0.00015,14]
[422347897,1778860244000,-666.0,0.00014999,2]
[422347913,1778860244000,-151.0,0.00015,2]
[422347911,1778860244000,-1259.515367,0.00015,2]
[422347909,1778860244000,-499.999999,0.00015,2]
[422347908,1778860244000,-42506.2789719,0.00015,2]
[422347912,1778860244000,-361.83796434,0.00015,2]
[422347907,1778860244000,-6890.840046,0.00015,2]
[422347906,1778860244000,-3371.8691805,0.00015,2]
[422347915,1778860244000,-151.0,0.00015,2]
[422347905,1778860244000,-7056.4667205,0.00015,2]
[422347901,1778860244000,-8082.43942848,0.00015,2]
[422347904,1778860244000,-55432.2246253,0.00015,2]
[422347991,1778860245000,-1350.9,0.00016438,2]
[422347992,1778860245000,-447.77769107,0.00016438,2]
[422347982,1778860245000,-188.96646728,0.000159,2]
[422347979,1778860245000,-352.0,0.00015421,2]
[422347976,1778860245000,-13980.36,0.0001531,2]
[422347978,1778860245000,-164.16086875,0.00015398,2]
[422347977,1778860245000,-2631.25,0.0001531,2]
[422347975,1778860245000,-11323.48,0.0001531,2]
[422347972,1778860245000,-328.67857,0.00015068,2]
[422347980,1778860245000,-867.25430529,0.00015461,2]
[422347993,1778860245000,-151.0,0.00016438,2]
[422347987,1778860245000,-741.0,0.00016325,2]
[422347984,1778860245000,-3622.93,0.00016116,2]
[422347986,1778860245000,-496.38,0.00016238,2]
[422347989,1778860245000,-2000.0,0.00016371,2]
[422347990,1778860245000,-160.21,0.00016382,2]
[422347988,1778860245000,-166.35,0.00016367,2]
[422347985,1778860245000,-2351.0,0.00016236,2]
[422347994,1778860245000,-166.309263,0.00016438,2]
[422347995,1778860245000,-166.309263,0.00016438,2]
[422348005,1778860245000,-362.901252,0.00016438,2]
[422347997,1778860245000,-166.309263,0.00016438,2]
[422347996,1778860245000,-166.309263,0.00016438,2]
[422347983,1778860245000,-300.0,0.00016,2]
[422347970,1778860245000,-328.67857,0.00015068,2]
[422347956,1778860245000,-159.265644,0.00015,2]
[422347973,1778860245000,-328.67857,0.00015068,2]
[422347998,1778860245000,-362.901252,0.00016438,2]
[422347945,1778860245000,-73674.6510593,0.00015,2]
[422347944,1778860245000,-229.320776,0.00015,2]
[422347947,1778860245000,-5849.26422975,0.00015,2]
[422347946,1778860245000,-16567.28304432,0.000149,2]
[422347954,1778860245000,-159.265644,0.00015,2]
[422347948,1778860245000,-11354.09585056,0.00015,2]
[422347955,1778860245000,-159.265644,0.00015,2]
[422347949,1778860245000,-4452.61369644,0.00015,2]
[422347950,1778860245000,-11679.81651685,0.00015,2]
[422347952,1778860245000,-159.265644,0.00015,2]
[422347951,1778860245000,-150921.2920311,0.00015,2]
[422347953,1778860245000,-159.265644,0.00015,2]
[422347960,1778860245000,-1814.4201509,0.00015,2]
[422347961,1778860245000,-151.0,0.00015,2]
[422347959,1778860245000,-159.265644,0.00015,2]
[422347958,1778860245000,-159.265644,0.00015,2]
[422347957,1778860245000,-159.265644,0.00015,2]
[422347963,1778860245000,-267.42,0.0001502,2]
[422347967,1778860245000,-328.67857,0.00015068,2]
[422347966,1778860245000,-328.67857,0.00015068,2]
[422347965,1778860245000,-240.44,0.00015068,2]
[422347968,1778860245000,-328.67857,0.00015068,2]
[422347969,1778860245000,-328.67857,0.00015068,2]
[422347971,1778860245000,-328.67857,0.00015068,2]
[422347981,1778860245000,-433.0,0.0001583,2]
[422348002,1778860245000,-362.901252,0.00016438,2]
[422347974,1778860245000,-256.55472192,0.00015081,2]
[422348003,1778860245000,-362.901252,0.00016438,2]
[422348034,1778860245000,-151.0,0.00017205,2]
[422348036,1778860245000,-151.0,0.00017205,2]
[422348039,1778860245000,-500.0,0.00017205,2]
[422348032,1778860245000,-151.0,0.00017205,2]
[422348038,1778860245000,-151.0,0.00017205,2]